Cogmind - Beta 16.1 @@@ ROGUE MODE // 2026.02.19 @ 10:01:34 Player: Prakos Result: Self-destructed Performance ------------- Evolutions (1) 500 Regions Visited (2) 400 Robots Destroyed (26) 130 Value Destroyed (743) 743 Prototype IDs (0) 0 Alien Tech Used (0) 0 Bonus (0) 0 TOTAL SCORE: 1773 Bonus ------- None Cogmind --------- Core Integrity 93/400 Matter 300/300 Energy 100/100 System Corruption 0% Temperature Cool (0) Movement Walking (130) Location -9/Materials Parts ------- > --- POWER (1) -------- (None) > --- PROPULSION (3) --- Titanium Leg Titanium Leg Titanium Leg > --- UTILITY (2) ------ Heat Sink Small Storage Unit > --- WEAPON (3) ------- Heavy Particle Cannon > --- INVENTORY (8) ---- Aluminum Leg Aluminum Leg Aluminum Leg Improved Aluminum Leg Titanium Leg Hardened Medium Armor Plating Hardened Medium Armor Plating Grenade Launcher Peak State ------------ > --- POWER ------------ Light Nuclear Core > --- PROPULSION ------- Aluminum Leg Aluminum Leg Titanium Leg > --- UTILITY ---------- Heat Sink Small Storage Unit > --- WEAPON ----------- Particle Gun Heavy Particle Cannon Assault Rifle > --- INVENTORY -------- Ion Engine Titanium Leg Titanium Leg Titanium Leg Hardened Medium Armor Plating Hardened Medium Armor Plating Heavy Particle Cannon Grenade Launcher [Rating: 18] Favorites ----------- Power Light Nuclear Core Engine Ion Engine Power Core Light Nuclear Core Propulsion Aluminum Leg Leg Aluminum Leg Utility Small Storage Unit Device Heat Sink Storage Small Storage Unit Weapon Heavy Particle Cannon Energy Gun Particle Gun Energy Cannon Heavy Particle Cannon Ballistic Gun Assault Rifle Launcher Grenade Launcher Build | -11 -10 -9 ------- Run | Yrd Mat Mat Slots Evolved 2 | . . 2 Power . | . . . Propulsion 1 | . . 1 Utility . | . . . Weapon 1 | . . 1 Parts Attached 19 | 6 5 8 Power 3 | 1 1 1 Engine 2 | 1 . 1 Core 1 | . 1 . Reactor . | . . . Propulsion 7 | 2 1 4 Treads . | . . . Leg 7 | 2 1 4 Wheel . | . . . Hover . | . . . Flight . | . . . Utility 2 | 1 1 . Device 1 | . 1 . Storage 1 | 1 . . Processor . | . . . Hackware . | . . . Protection . | . . . Artifact . | . . . Weapon 7 | 2 2 3 Energy Gun 2 | 1 1 . Energy Cannon 2 | . . 2 Ballistic Gun 2 | 1 1 . Ballistic Cannon . | . . . Launcher 1 | . . 1 Special Weapon . | . . . Impact Weapon . | . . . Slashing Weapon . | . . . Piercing Weapon . | . . . Special Melee Weapon . | . . . Unidentified Prototypes . | . . . Parts Lost 9 | . 1 8 Power 2 | . . 2 Propulsion 3 | . 1 2 Utility . | . . . Weapon 4 | . . 4 Highest Loss Streak 7 | . 1 7 To Critical Strikes 1 | . 1 . Average Backups 6 | 1 6 6 Power . | . 1 . Propulsion 2 | . 2 2 Utility 1 | . . 1 Weapon 1 | . 2 1 Tool/Special . | . . . Unused Backups 13 | . 2 11 Power 1 | . . 1 Propulsion 7 | . 2 5 Utility 2 | . . 2 Weapon 3 | . . 3 Tool/Special . | . . . Average Slot Usage (%) 85 | . 89 82 Engine 2 | . 4 1 Core 6 | . 9 4 Leg 29 | . 27 30 Device 9 | . 5 11 Storage 12 | . 14 11 Energy Gun 6 | . 11 4 Energy Cannon 10 | . . 15 Ballistic Gun 8 | . 16 4 Peak Build Rating 18 | 6 10 18 Average Rating 13 | 4 8 16 On Entrance 5 | . 6 10 Avg Prop Armor Cover (%) 8 | . . 8 Naked Turns . | . . . Heaviest Build 24 | 12 16 24 Greatest Support 51 | 20 20 51 Greatest Overweight (x) 2 | 2 . 1 Average Overweight (x) . | . . . Largest Inventory Capacity 8 | 8 8 8 Average Capacity 7 | 6 8 8 Most Carried 8 | 3 8 8 Average Carried 6 | 1 6 6 Final Capacity 8 | 8 8 8 Final Carried 8 | 3 7 8 Class Distribution -------------------- 73% | Mutant 20% | Scavenger-Gunner 5% | Scavenger-Mutant Dominant Class ---------------- Mutant | -10/Materials Mutant | -9/Materials Resources | -11 -10 -9 ----------- Run | Yrd Mat Mat Matter Collected 483 | 258 102 123 Remotely . | . . . Salvage Created 982 | . 220 762 Parts 54 | . 19 35 Haulers Intercepted 2 | . 1 1 Recyclers Shooed 2 | . . 2 Parts Field Recycled . | . . . Retrieved Matter . | . . . Parts Self-Destructed . | . . . Prevented . | . . . Parts Restored . | . . . Kills | -11 -10 -9 ------- Run | Yrd Mat Mat Combat Hostiles Destroyed 20 | . 6 14 Guns 11 | . 6 5 Cannons 7 | . . 7 AOE 2 | . . 2 Classes Destroyed 9 | . 3 6 Worker 1 | . . 1 Builder 1 | . . 1 Hauler 2 | . 1 1 Recycler 1 | . . 1 Mechanic 1 | . . 1 Swarmer 3 | . 3 . Grunt 11 | . 3 8 Duelist 2 | . . 2 Sentry 4 | . . 4 Best Kill Streak 13 | . 3 13 Combat Bots Only 7 | . 3 7 Max Kills in Single Turn 3 | . 1 3 Gunslinging . | . . . Exploded 2 | . . 2 Melee . | . . . Uniques/NPCs Destroyed . | . . . Combat | -11 -10 -9 -------- Run | Yrd Mat Mat Hostile Shots Fired 129 | . 16 113 Missed 37 | . 6 31 Hits 92 | . 10 82 Melee 7 | . . 7 Projectile 85 | . 10 75 Critical Strikes 1 | . 1 . Damage Taken 1282 | . 119 1163 Core 307 | . . 307 Absorbed by Shields . | . . . Core Remaining (%) 100 | 100 100 . Volleys Fired 53 | . 15 38 Largest 3 | . 2 3 Hottest 160 | . 85 160 Shots Fired 113 | . 30 83 Gun 63 | . 30 33 Cannon 47 | . . 47 Launcher 3 | . . 3 Special . | . . . Kinetic 39 | . 22 17 Thermal 71 | . 8 63 Explosive 3 | . . 3 Electromagnetic . | . . . Robot Hit Streak 8 | . 5 8 Robot Miss Streak 4 | . 4 4 Penetration Max . | . . . Secondary Targets . | . . . Shots Hit Robots 64 | . 16 48 Core Hits 40 | . 10 30 Critical Kills . | . . . Critical Parts Destroyed . | . . . Critical Strikes . | . . . Melee Attacks . | . . . Impact . | . . . Slashing . | . . . Piercing . | . . . Sneak Attacks . | . . . Combat Hostiles . | . . . Follow-up Attacks . | . . . Damage Inflicted 1741 | 4 194 1543 Guns 484 | . 191 293 Cannons 775 | . . 775 Explosions 431 | . . 431 Melee . | . . . Ramming 51 | 4 3 44 Kinetic 275 | . 136 139 Thermal 984 | . 55 929 Explosive 431 | . . 431 Electromagnetic . | . . . Impact . | . . . Slashing . | . . . Piercing . | . . . Highest Corruption . | . . . Average Corruption . | . . . Corruption Purged . | . . . Corruption Blocked . | . . . Overload Shots . | . . . Overflow Damage . | . . . Projectiles . | . . . Explosions . | . . . Melee . | . . . Knockbacks . | . . . Impact . | . . . Kinetic . | . . . Secondary . | . . . Self-Inflicted Damage . | . . . Shots . | . . . Rammed . | . . . Targets Rammed 12 | 2 3 7 Kicked 12 | 2 3 7 Crushed . | . . . Highest Temperature 356 | . 30 356 Average Temperature 133 | . 13 138 Received Heat Transfer 504 | . 48 456 Effects 2 | . . 2 Interference 2 | . . 2 Siege Activations . | . . . Martial Activations . | . . . Shielding Activations . | . . . Robots Disrupted . | . . . Combat Hostiles . | . . . Robots Corrupted . | . . . Combat Hostiles . | . . . Parts Fried . | . . . Impact Corruptions . | . . . Robots Melted . | . . . Combat Hostiles . | . . . Parts Melted 2 | . . 2 Heat Transferred 1665 | . 148 1517 Parts Sabotaged . | . . . Parts Stolen . | . . . Parts Stripped . | . . . Power Chain Reactions . | . . . Alert | -11 -10 -9 ------- Run | Yrd Mat Mat Maximum Alert Level 1 | . . 1 Low Security (%) 85 | 100 100 77 Level 1 14 | . . 22 Level 2 . | . . . Level 3 . | . . . Level 4 . | . . . Level 5 . | . . . High Security . | . . . Max Security . | . . . Peak Influence 270 | . 60 270 Initial 20 | . . 20 Average 73 | . 16 109 Influence Increases 648 | . 147 501 Destroy 0b10 Robot/C 400 | . 120 280 Destroy 0b10 Robot/NC 30 | . 5 25 Destroy Leader 104 | . 22 82 Successful Hack 18 | . . 18 Disable Machine 15 | . . 15 Destroy Structure 36 | . . 36 Lose Combat Pursuer 45 | . . 45 Influence Decreases 579 | . 97 482 Entered New Map 30 | . . 30 Time Decay 309 | . 87 222 Lost Part 90 | . 10 80 Purge Threat 150 | . . 150 Squads Dispatched 2 | . . 2 Investigation 2 | . . 2 Extermination . | . . . Reinforcement . | . . . Assault . | . . . Garrison . | . . . Intercept . | . . . Searches Triggered . | . . . Construction Impeded . | . . . Haulers Reinforced . | . . . Active Scanning Responses . | . . . Cargo Convoy Interrupts . | . . . Stealth | -11 -10 -9 --------- Run | Yrd Mat Mat Distress Signals 5 | . 1 4 Communications Jammed . | . . . Distress Signals . | . . . Times Spotted 30 | . 6 24 Peak Tracking Total 9 | . 3 9 Tactical Retreats 1 | . . 1 Traps | -11 -10 -9 ------- Run | Yrd Mat Mat Traps Triggered 1 | . . 1 Indirectly . | . . . Trap Hack Attempts . | . . . Triggered . | . . . Disarmed . | . . . Reprogrammed . | . . . Reused . | . . . Traps Extracted . | . . . Installed . | . . . Triggered . | . . . Machines | -11 -10 -9 ---------- Run | Yrd Mat Mat Machines Disabled 1 | . . 1 Max in Single Turn 1 | . . 1 Machines Repaired . | . . . Machines Dismantled . | . . . Machines Sabotaged . | . . . Overloaded Fab Kills . | . . . Hacking | -11 -10 -9 --------- Run | Yrd Mat Mat Machines Accessed 8 | . 3 5 Terminals 5 | . 2 3 Fabricators . | . . . Repair Stations . | . . . Recycling Units 2 | . 1 1 Scanalyzers 1 | . . 1 Garrison Access . | . . . Total Hacks 20 | . 7 13 Successful 13 | . 4 9 Failed 7 | . 3 4 Catastrophic . | . . . Database Lockouts . | . . . Manual 10 | . 2 8 Terminals 14 | . 6 8 Fabricators . | . . . Repair Stations . | . . . Recycling Units 4 | . 1 3 Scanalyzers 2 | . . 2 Garrison Access . | . . . Terminal Hacks 3 | . 1 2 Branch Access Points 1 | . 1 . Alert Level 1 | . . 1 Unreport Threat 1 | . . 1 Fabricator Hacks . | . . . Repair Station Hacks . | . . . Recycling Unit Hacks 3 | . 1 2 Report Inventory 1 | . . 1 Retrieve Components 2 | . 1 1 Scanalyzer 2 | . . 2 Insert Component 1 | . . 1 Analyze 1 | . . 1 Garrison Access Hacks . | . . . Unauthorized Hacks 5 | . 2 3 Terminals 5 | . 2 3 Botnet 5 | . 2 3 Fabricators . | . . . Repair Stations . | . . . Recycling Units . | . . . Scanalyzers . | . . . Garrison Access . | . . . Data Cores Recovered . | . . . Used . | . . . Hacking Detections 6 | . 2 4 Full Trace Events 1 | . . 1 Feedback Events . | . . . Feedback Blocked . | . . . Robot Schematics Acquired . | . . . Robots Built . | . . . Authchips . | . . . Time . | . . . Total Robot Build Rating . | . . . Part Schematics Acquired 1 | . . 1 Parts Built . | . . . Authchips . | . . . Time . | . . . Total Part Build Rating . | . . . Part Studies Acquired . | . . . Parts Repaired . | . . . Time . | . . . Parts Recycled . | . . . Recycled Matter . | . . . Retrieved Matter . | . . . Retrieved Components 10 | . . 10 Parts Scanalyzed 1 | . . 1 Part Schematics Acquired 1 | . . 1 Parts Damaged . | . . . Bothacking | -11 -10 -9 ------------ Run | Yrd Mat Mat Used RIF Installer . | . . . Robots Hacked . | . . . Non-combat . | . . . Combat . | . . . Robot Hacks Applied . | . . . Relay Couplers Released . | . . . Fabnet Peak Effective % . | . . . Robots Rewired . | . . . Allies Hacked . | . . . Hacks Repelled . | . . . Allies | -11 -10 -9 -------- Run | Yrd Mat Mat Total Allies . | . . . Largest Group . | . . . Highest-Rated Group . | . . . Highest-Rated Ally . | . . . Total Orders . | . . . Ally Attacks . | . . . Total Damage . | . . . Kills . | . . . Allies Corrupted . | . . . Allies Melted . | . . . Intel | -11 -10 -9 ------- Run | Yrd Mat Mat Active Infowar (turns) . | . . . Robot Analysis Total . | . . . Derelict Logs Recovered . | . . . Drone Launches . | . . . Drone Recoveries . | . . . Exploration | -11 -10 -9 ------------- Run | Yrd Mat Mat Turns Passed 829 | 54 258 517 Spaces Moved 371 | 36 155 180 Core 7 | 7 . . Treads . | . . . Legs 364 | 29 155 180 Wheels . | . . . Hover . | . . . Flight . | . . . Fastest Speed 50 | 50 120 120 Average Speed 124 | 113 120 130 Slowest Speed 200 | 150 120 200 Overloaded Moves . | . . . Propulsion Burnouts . | . . . Robots Hopped . | . . . Potential Cave-ins . | . . . Cave-ins Triggered . | . . . Exploration Rate (%) 17 | 4 28 21 Regions Visited 2 Branch Regions . Pre-discovered Areas . | . . . Known Exits Taken . | . . . Unknown Exits Taken 2 | 1 1 . Scrap Searched . | . . . Spaces Dug . | . . . Terrain Destroyed 41 | . . 41 Melee . | . . . Projectile 14 | . . 14 AOE 27 | . . 27 Terrain Rammed . | . . . Walls Destroyed . | . . . Machines Disabled . | . . . Actions | -11 -10 -9 --------- Run | Yrd Mat Mat Total 638 | 46 198 394 Wait 151 | . 10 141 Move 370 | 36 154 180 Hop . | . . . Pick Up 22 | 3 5 14 Fast Attach 9 | 6 3 . Attach 9 | . 1 8 Detach 2 | . 2 . Swap 2 | . 2 . Drop 9 | . 3 6 Fire 53 | . 15 38 Melee . | . . . Ram . | . . . Kick 11 | 1 3 7 Crush . | . . . Escape Stasis . | . . . Rewire . | . . . Trap . | . . . Miscellaneous . | . . . Route ------- -11/Scrapyard -10/Materials (discovered 3 exits: *Mat / Min x2) -9/Materials History --------- Turn | Location | Event 11 | -11/Scrapyard | Discovered new exit (range 16) 55 | -11/Scrapyard | Entered Materials 188 | -10/Materials | Identified exit to Mines 301 | -10/Materials | Discovered new exit (range 11) 313 | -10/Materials | Entered another Materials area 313 | -9/Materials | Evolved 2 slots: Propulsion x1, Weapon x1 557 | -9/Materials | Core integrity fell below 50% 583 | -9/Materials | Destroyed 7 combat bots 593 | -9/Materials | Lost 7 parts (2p2n3w) 804 | -9/Materials | Build established: Mutant 830 | -9/Materials | Self-destructed Last Messages --------------- Heat Sink (13%) 00775_ Connecting with Recycling Unit... >>Retrieve(Components) Retrieving 10/13 components... Lgt. Cannon Heat Sink Aluminum Leg Aluminum Leg Sml. Matter Pod Grenade Launcher Hvy. Assault Rifle Aluminum Leg Heat Sink Grenade Launcher 00775_ ALERT: Suspicious activity at Recycling Unit M002. Dispatching Investigation squad. 00780_ U-05 Engineer builds a Wall. 00790_ Acquired Grenade Launcher. 00792_ Acquired Aluminum Leg. 00829_ Hvy. Particle Cannon destroyed. Map ----- +----------------------------------------------------+ | # """"?????????????????????????????????????????? | | # """""????????????????????????????????????????? | | + """""????????????????????????????????????????? | | # """ #???????????????????????????????????????? | | # #???????????????????????????????????????? | | ##########???????????????????????????????????????? | | ##????#####??????????????????????????????????????? | | #????]! #??????????????????????????????????????? | | #?? ]! #??????????????????????????????????????? | | #? *! =#??????????????????????????????????????? | | # #?????????? ?????????????????????????? | | + """ ""????????????# ?????????????????????????? | | # """ ""????????????+ +????????????????????????? | | # """ "?????????????# #????????????????????????? | | #? ?????????????# #????????????????????????? | | #?#####?????????????# #????????????????????????? | | #???????????????????# #????????????????????????? | | #???????????????????# #????????????????????????? | | #???????????????????# #????????????????????????? | | #???????????????????# #????????????????????????? | | #???????????????????# #????????????????????????? | | #####???????????????# ##???????????????????????? | | ########????????# ########?????????????????? | | ########## # ! #?????????????????? | | % % + # # !"""#?????????????????? | | % ### # #@] Y"#?????????????????? | | ###+##+#?# %+% g %["""#?????????????????? | | ##### #?# "T" # # ]!= #?????????????????? | | ##### "" #?# """ # # #?????????????????? | | ????# T" #?# # ##### ##?????????????????? | | ????# "" #?######## #????##??????????????????? | | ????#! #????????# #????????????????????????? | | ????# #????????# #????????????????????????? | | ????##+#####????????# +????????????????????????? | | ?????# #????????????# #????????????????????????? | | ?????# #????????????# #????????????????????????? | | ?????# #????????????# #????????????????????????? | | ?????# #???????????? ????????????????????????? | | ?????# ???????????? ????????????????????????? | | ?????# ???????????? ????????????????????????? | | ?????# ???????????? ????????????????????????? | | ?????###????????????? ?????????????????????????? | | ?????????????????????????????????????????????????? | | ?????????????????????????????????????????????????? | | ?????????????????????????????????????????????????? | | ?????????????????????????????????????????????????? | | ?????????????????????????????????????????????????? | | ?????????????????????????????????????????????????? | | ?????????????????????????????????????????????????? | | ?????????????????????????????????????????????????? | +----------------------------------------------------+ Best States ------------- Heat Dissipation 38 Energy Generation 14 Energy Capacity 265 Matter Stores 300 Matter Capacity 300 Sight Range 16 Terrain Scan Density 10 Evasion (%) 55 Item Schematics ----------------- Ion Engine | -9/Materials | Scanalyzed Robot Schematics ------------------ None Fabricated ------------ Nothing Repaired ---------- Nothing Studied --------- None Alien Tech Used ----------------- None Achievements -------------- None Challenges ------------ None Game ------ Seed CatalystAutogunSpear Manual? 0 Play Time 00:23:33 Cumulative 66.0 hours Start 2026.02.19 @ 09:38:07 End 2026.02.19 @ 10:01:34 Sessions 1 Manual Loads 0 Difficulty Rogue Special Mode None Game No. 47 Rogue 47 Adventurer 0 Explorer 0 Win Type - Total 0 Types 0/0/0/0/0/0/0/0/0/0 Lore% 23 Gallery% 31 Achievement% 26 Wizard Run 0 Options --------- Layout 1 ASCII 0 Keyboard 0 Movement Numpad Keybinds 0 Fullscreen 1 Font 24/Smallcaps Map View 50x35 Zoom Use 0% Tactical HUD 1 Map Filters NONE Filters NONE Steam 1 RUN: aa7c942c-2554-421e-a73b-15e84eb926a2